fUST/lending_fUST_20250218
["ID","MTS","AMOUNT","RATE_DAILY","PERIOD"]
[353393276,1739811052049,-1311.44150986,0.00014796,2]
[353393277,1739811052058,-5912.43804915,0.000148,2]
[353393278,1739811052068,-5912.43804915,0.000148,2]
[353393279,1739811052077,-5912.43804915,0.000148,2]
[353393280,1739811052087,-5912.43804915,0.000148,2]
[353393281,1739811052100,-5912.43804915,0.000148,2]
[353393282,1739811052116,-5912.43804915,0.000148,2]
[353393283,1739811052127,-5912.43804915,0.000148,2]
[353393284,1739811052137,-5912.43804915,0.000148,2]
[353393285,1739811052147,-5912.43804915,0.000148,2]
[353393286,1739811052156,-5912.43804915,0.000148,2]
[353393287,1739811052165,-5912.43804915,0.000148,2]
[353393288,1739811052175,-5912.43804915,0.000148,2]
[353393289,1739811052187,-5912.43804915,0.000148,2]
[353393290,1739811052198,-5912.43804915,0.000148,2]
[353393291,1739811052209,-5912.43804915,0.000148,2]
[353393292,1739811052219,-5912.43804915,0.000148,2]
[353393293,1739811052230,-5912.43804915,0.000148,2]
[353393294,1739811052240,-5912.43804915,0.000148,2]
[353393295,1739811052251,-5912.43804915,0.000148,2]
[353393296,1739811052263,-5912.43,0.000148,2]
[353393297,1739811052274,-3690.29009538,0.000148,2]
[353393298,1739811052286,-970.38355395,0.000148,2]
[353393299,1739811052297,-970.38355395,0.000148,2]
[353393300,1739811052307,-970.38355395,0.000148,2]
[353393301,1739811052317,-970.38355395,0.000148,2]
[353393302,1739811052327,-970.38355395,0.000148,2]
[353393303,1739811052337,-970.38355395,0.000148,2]
[353393304,1739811052347,-970.38355395,0.000148,2]
[353393305,1739811052358,-970.38355395,0.000148,2]
[353393306,1739811052367,-970.38355395,0.000148,2]
[353393307,1739811052377,-970.38355395,0.000148,2]
[353393308,1739811052387,-970.38355395,0.000148,2]
[353393309,1739811052397,-970.38355395,0.000148,2]
[353393310,1739811052408,-970.38355395,0.000148,2]
[353393311,1739811052418,-970.38355395,0.000148,2]
[353393312,1739811052428,-970.38355395,0.000148,2]
[353393313,1739811052437,-970.38355395,0.000148,2]
[353393314,1739811052448,-970.38355395,0.000148,2]
[353393315,1739811052457,-970.38355395,0.000148,2]
[353393316,1739811052469,-970.38355395,0.000148,2]
[353393317,1739811052479,-970.38,0.000148,2]
[353393318,1739811052489,-1000.0,0.00014838,2]
[353393319,1739811052500,-600.0,0.0001485,2]
[353393320,1739811052510,-1000.0,0.00014866,2]
[353393321,1739811052521,-274.70902027,0.00014873,2]
[353393322,1739811052531,-1000.0,0.00014873,2]
[353393323,1739811052541,-187.49623089,0.00014895,2]
[353393324,1739811052551,-370.44997693,0.00014895,2]
[353393325,1739811052560,-88101.02552901,0.00014896,2]
[353393326,1739811052570,-500.0,0.00014896,2]
[353393327,1739811052580,-500.0,0.00014896,2]
[353393328,1739811052590,-150.23,0.00014896,2]
[353393329,1739811052599,-150.23,0.00014896,2]
[353393330,1739811052609,-150.23,0.00014896,2]
[353393331,1739811052619,-151.0,0.00014896,2]
[353393332,1739811052628,-150.23,0.00014896,2]
[353393333,1739811052638,-150.23,0.00014896,2]
[353393334,1739811052647,-152.45469235,0.00014896,2]
[353393335,1739811052657,-150.23,0.00014896,2]
[353393336,1739811052667,-150.23,0.00014896,2]
[353393337,1739811052676,-150.23,0.00014896,2]
[353393338,1739811052686,-150.48257331,0.00014896,2]
[353393339,1739811052696,-500.0,0.000149,2]
[353393340,1739811052706,-183.1,0.000149,2]
[353393341,1739811052716,-151.0,0.000149,2]
[353393342,1739811052725,-151.0,0.000149,2]
[353393343,1739811052734,-3000.0,0.000149,2]
[353393344,1739811052744,-300.0,0.000149,5]
[353393345,1739811052754,-196.397687,0.000149,2]
[353393346,1739811052766,-196.397687,0.000149,2]
[353393347,1739811052775,-151.0,0.000149,2]
[353393348,1739811052785,-151.0,0.000149,2]
[353393349,1739811052794,-151.0,0.000149,2]
[353393350,1739811052803,-151.0,0.000149,2]
[353393351,1739811052813,-151.0,0.000149,2]
[353393352,1739811052822,-151.0,0.000149,2]
[353393353,1739811052832,-151.0,0.000149,2]
[353393354,1739811052842,-151.0,0.000149,2]
[353393355,1739811052852,-151.0,0.000149,2]
[353393356,1739811052862,-151.0,0.000149,2]
[353393357,1739811052872,-358363.86722208,0.000149,2]
[353393358,1739811052955,-1188.01018729,0.000149,2]
[353393359,1739811053112,-3943.79,0.00011452,2]
[353393360,1739811053122,-3943.79,0.00011534,2]
[353393361,1739811053132,-500.0,0.00011616,2]
[353393362,1739811053143,-3943.79,0.00011616,2]
[353393363,1739811053153,-500.0,0.00011698,2]
[353393364,1739811053163,-3943.79,0.00011698,2]
[353393365,1739811053175,-500.0,0.0001178,2]
[353393366,1739811053185,-3943.79,0.0001178,2]
[353393367,1739811053194,-500.0,0.00011863,2]
[353393368,1739811053204,-3943.79,0.00011863,2]
[353393369,1739811053213,-500.0,0.00011945,2]
[353393370,1739811053223,-3943.79,0.00011945,2]
[353393371,1739811053232,-500.0,0.00012027,2]
[353393372,1739811053242,-3943.79,0.00012027,2]
[353393373,1739811053251,-500.0,0.00012109,2]
[353393374,1739811053265,-33406.22146701,0.000149,2]
[353393375,1739811053349,-203.40668753,0.00012109,2]
[353393376,1739811053362,-3543.05967417,0.00012109,2]
[353393377,1739811053471,-500.0,0.00010958,2]
[353393378,1739811053481,-500.0,0.00010958,2]
[353393379,1739811053491,-197.3236383,0.00012109,2]
[353393380,1739811053502,-500.0,0.00012191,2]
[353393381,1739811053511,-3943.79,0.00012191,2]
[353393382,1739811053523,-3943.79,0.00012273,2]
[353393383,1739811053532,-500.0,0.00012273,2]
[353393384,1739811053623,-3943.79,0.00012356,2]
[353393385,1739811053633,-276.5063617,0.00012356,2]
[353393386,1739811053645,-223.4936383,0.00012356,2]
[353393387,1739811053654,-339.57008918,0.00012438,2]
[353393388,1739811053698,-953.8,0.00010848,2]
[353393389,1739811053710,-46.2,0.00010848,2]
[353393390,1739811053720,-500.0,0.00010958,2]
[353393391,1739811053729,-3604.21991082,0.00012438,2]
[353393392,1739811053739,-410.96380198,0.00012438,2]
[353393393,1739811053748,-3943.79,0.0001252,2]
[353393394,1739811053757,-3943.79,0.00012602,2]
[353393395,1739811053768,-3943.79,0.00012684,2]
[353393396,1739811053778,-3943.79,0.00012767,2]
[353393397,1739811053787,-3943.88848065,0.00012849,2]
[353393398,1739811053797,-151.0,0.00014896,2]
[353393399,1739811053806,-10222.89203928,0.000149,2]
[353393400,1739811053818,-1779.9999999,0.000149,2]
[353393420,1739811936120,-250.0,9.529e-05,2]
[353393421,1739811936143,-125.17435214,9.626e-05,2]
[353393422,1739812027131,-124.82564786,9.626e-05,2]
[353393423,1739812027155,-843.23413982,9.749e-05,2]
[353393424,1739812034103,-85.70293448,9.749e-05,2]
[353393425,1739812034126,-284.90396686,0.00010204,2]
[353393426,1739812037137,-495.38977494,0.00010204,2]
[353393427,1739812037159,-300.0,0.00010222,2]
[353393428,1739812037179,-3609.22044052,0.00010223,2]
[353393429,1739812150215,-152.13265972,0.00010001,2]
[353393430,1739812150239,-152.13265972,0.00010102,2]
[353393431,1739812150262,-6574.34186918,0.00010223,2]
[353393432,1739812150289,-400.0,0.00010685,2]
[353393433,1739812150313,-300.0,0.00010956,2]
[353393434,1739812150336,-840.32495369,0.00010957,2]
[353393435,1739812150360,-500.0,0.00010957,2]
[353393436,1739812150385,-500.0,0.00010957,2]
[353393437,1739812150410,-200.28774299,0.00010957,2]
[353393438,1739812150431,-500.0,0.00010957,2]
[353393439,1739812150455,-500.0,0.00010957,2]
[353393440,1739812150477,-500.0,0.00010957,2]
[353393441,1739812150499,-500.0,0.00010957,2]
[353393442,1739812150519,-500.0,0.00010957,2]
[353393443,1739812150541,-500.0,0.00010957,2]
[353393444,1739812150564,-500.0,0.00010957,2]
[353393445,1739812150585,-228.53,0.00010957,2]
[353393446,1739812150606,-500.0,0.00010957,2]
[353393447,1739812150627,-428.30663073,0.00010957,2]
[353393448,1739812150650,-500.0,0.00010957,2]
[353393449,1739812150672,-500.0,0.00010957,2]
[353393450,1739812150694,-500.0,0.00010957,2]
[353393451,1739812150716,-570.02961522,0.00010957,2]
[353393452,1739812150740,-500.0,0.00010957,2]
[353393453,1739812150763,-500.0,0.00010957,2]
[353393454,1739812150786,-500.0,0.00010957,2]
[353393455,1739812150808,-500.0,0.00010957,2]
[353393456,1739812150830,-500.0,0.00010957,2]
[353393457,1739812150852,-500.0,0.00010957,2]
[353393458,1739812150873,-500.0,0.00010957,2]
[353393459,1739812150898,-500.0,0.00010957,2]
[353393460,1739812150919,-500.0,0.00010957,2]
[353393461,1739812150941,-500.0,0.00010957,2]
[353393462,1739812150962,-500.0,0.00010957,2]
[353393463,1739812150983,-500.0,0.00010957,2]
[353393464,1739812151007,-500.0,0.00010957,2]
[353393465,1739812151027,-205.33065074,0.00010957,2]
[353393466,1739812151047,-500.0,0.00010957,2]
[353393467,1739812151070,-500.0,0.00010957,2]
[353393468,1739812151091,-500.0,0.00010957,2]
[353393469,1739812151113,-500.0,0.00010957,2]
[353393470,1739812151132,-175.24668509,0.00010957,2]
[353393471,1739812151155,-616.9072747,0.00010957,2]
[353393472,1739812151175,-463.62254014,0.00010957,2]
[353393473,1739812151196,-500.0,0.00010957,2]
[353393474,1739812151217,-500.0,0.00010957,2]
[353393475,1739812151237,-185.09746347,0.00010957,2]
[353393476,1739812151258,-500.0,0.00010957,2]
[353393477,1739812151280,-500.0,0.00010957,2]
[353393478,1739812151302,-500.0,0.00010957,2]
[353393479,1739812151323,-273.76664524,0.00010957,2]
[353393480,1739812151344,-500.0,0.00010957,2]
[353393481,1739812151366,-500.0,0.00010957,2]
[353393482,1739812151391,-500.0,0.00010957,2]
[353393483,1739812151413,-500.0,0.00010957,2]
[353393484,1739812151436,-500.0,0.00010957,2]
[353393485,1739812151459,-500.0,0.00010957,2]
[353393486,1739812151483,-500.0,0.00010957,2]
[353393487,1739812151506,-625.0127052,0.00010957,2]
[353393488,1739812151529,-500.0,0.00010958,2]
[353393489,1739812151552,-276.35200748,0.00010958,2]
[353393490,1739812151574,-500.0,0.00010958,2]
[353393491,1739812151595,-500.0,0.00010958,2]
[353393492,1739812151615,-500.0,0.00010958,2]
[353393493,1739812151640,-500.0,0.00010958,2]
[353393494,1739812151660,-500.66585079,0.00010958,2]
[353393495,1739812151680,-373.466443,0.00010958,2]
[353393496,1739812151701,-500.0,0.00010958,2]
[353393497,1739812151721,-500.0,0.00010958,2]
[353393498,1739812151741,-252.73549147,0.00010958,2]
[353393499,1739812151760,-500.3968267,0.00010958,2]
[353393500,1739812151781,-500.0,0.00010958,2]
[353393501,1739812151801,-530.97172849,0.00010958,2]
[353393502,1739812151821,-500.0,0.00010958,2]
[353393503,1739812151841,-500.0,0.00010958,2]
[353393504,1739812151861,-500.0,0.00010958,2]
[353393505,1739812151881,-500.0,0.00010958,2]
[353393506,1739812151906,-500.0,0.00010958,2]
[353393507,1739812151926,-500.0,0.00010958,2]
[353393508,1739812151946,-500.0,0.00010958,2]
[353393509,1739812151967,-500.0,0.00010958,2]
[353393510,1739812152113,-501.20868546,0.00010958,2]
[353393511,1739812152138,-500.0,0.00010958,2]
[353393512,1739812152160,-500.48230834,0.00010958,2]
[353393513,1739812152181,-500.0,0.00010958,2]
[353393514,1739812152202,-500.0,0.00010958,2]
[353393515,1739812152224,-500.0,0.00010958,2]
[353393516,1739812152245,-500.0,0.00010958,2]
[353393517,1739812152266,-500.0,0.00010958,2]
[353393518,1739812152287,-500.0,0.00010958,2]
[353393519,1739812152309,-51.75131589,0.00010958,2]
[353393520,1739812170092,-8255.40862,9.869e-05,2]
[353393521,1739812202422,197.52758985,9.901e-05,2]
[353393548,1739812231981,-4604.83978628,0.00010848,2]
[353393551,1739812231991,-343.59174959,0.00010858,2]
[353393552,1739812232000,-287.0,0.00010957,2]
[353393555,1739812232010,-500.0,0.00010958,2]
[353393557,1739812232019,-500.6036247,0.00010958,2]
[353393559,1739812232029,-500.0,0.00010958,2]
[353393560,1739812232038,-178.82496126,0.00010958,2]
[353393563,1739812232048,-500.0,0.00010958,2]
[353393565,1739812232057,-501.45567627,0.00010958,2]
[353393567,1739812232066,-500.0,0.00010958,2]
[353393569,1739812232075,-500.0,0.00010958,2]
[353393571,1739812232084,-500.77472186,0.00010958,2]
[353393573,1739812232094,-500.0,0.00010958,2]
[353393575,1739812232103,-500.0,0.00010958,2]
[353393577,1739812232113,-500.0,0.00010958,2]
[353393579,1739812232122,-500.0,0.00010958,2]
[353393581,1739812232132,-500.0,0.00010958,2]
[353393583,1739812232141,-500.0,0.00010958,2]
[353393585,1739812232151,-500.0,0.00010958,2]
[353393587,1739812232161,-501.02283733,0.00010958,2]
[353393589,1739812232171,-502.44304798,0.00010958,2]
[353393591,1739812232180,-500.0,0.00010958,2]
[353393593,1739812232189,-500.0,0.00010958,2]
[353393595,1739812232198,-500.0,0.00010958,2]
[353393598,1739812232207,-500.0,0.00010958,2]
[353393600,1739812232217,-500.80941133,0.00010958,2]
[353393602,1739812232226,-577.6632579,0.00010958,2]
[353393604,1739812232235,-500.0,0.00010958,2]
[353393606,1739812232245,-504.40047805,0.00010958,2]
[353393608,1739812232254,-500.0,0.00010958,2]
[353393609,1739812232263,-500.0,0.00010958,2]
[353393611,1739812232273,-509.19372021,0.00010958,2]
[353393613,1739812232282,-500.0,0.00010958,2]
[353393614,1739812232291,-500.0,0.00010958,2]
[353393615,1739812232301,-500.0,0.00010958,2]
[353393617,1739812232310,-500.0,0.00010958,2]
[353393618,1739812232319,-500.0,0.00010958,2]
[353393619,1739812232329,-500.0,0.00010958,2]
[353393620,1739812232340,-500.0,0.00010958,2]
[353393621,1739812232349,-500.0,0.00010958,2]
[353393622,1739812232358,-500.0,0.00010958,2]
[353393623,1739812232368,-500.0,0.00010958,2]
[353393624,1739812232378,-500.0,0.00010958,2]
[353393625,1739812232387,-552.98221707,0.00010958,2]
[353393626,1739812232397,-500.0,0.00010958,2]
[353393627,1739812232406,-500.0,0.00010958,2]
[353393628,1739812232415,-500.0,0.00010958,2]
[353393629,1739812232424,-500.0,0.00010958,2]
[353393630,1739812232434,-504.95647449,0.00010958,2]
[353393631,1739812232443,-500.0,0.00010958,2]
[353393632,1739812232453,-500.0,0.00010958,2]
[353393633,1739812232462,-500.48680402,0.00010958,2]
[353393634,1739812232471,-502.67604618,0.00010958,2]
[353393635,1739812232482,-566.28,0.00010958,2]
[353393636,1739812232494,-500.0,0.00010958,2]
[353393637,1739812232504,-500.0,0.00010958,2]
[353393638,1739812232514,-500.0,0.00010958,2]
[353393639,1739812232523,-500.72402134,0.00010958,2]
[353393640,1739812232534,-500.0,0.00010958,2]
[353393641,1739812232543,-223.8687845,0.00010958,2]
[353393642,1739812232552,-502.08902663,0.00010958,2]
[353393643,1739812232562,-500.0,0.00010958,2]
[353393644,1739812232572,-468.54004145,0.00010958,2]
[353393645,1739812232582,-500.0,0.00010958,2]
[353393646,1739812232591,-173.28469597,0.00010958,2]
[353393647,1739812232600,-500.31375197,0.00010958,2]
[353393648,1739812232610,-500.0,0.00010958,2]
[353393649,1739812232619,-500.0,0.00010958,2]
[353393650,1739812232629,-618.32822037,0.00010958,2]
[353393651,1739812232638,-607.68139883,0.00010958,2]
[353393652,1739812232647,-500.0,0.00010958,2]
[353393653,1739812232657,-500.0,0.00010958,2]
[353393654,1739812232666,-500.0,0.00010958,2]
[353393655,1739812232675,-623.8491984,0.00010958,2]
[353393656,1739812232684,-500.0,0.00010958,2]
[353393657,1739812232694,-500.0,0.00010958,2]
[353393658,1739812232703,-500.0,0.00010958,2]
[353393659,1739812232713,-272.46132601,0.00010958,2]
[353393660,1739812232722,-500.0,0.00010958,2]
[353393661,1739812232731,-150.87200808,0.00010958,2]
[353393662,1739812232741,-501.26928436,0.00010958,2]
[353393663,1739812232751,-348.84038606,0.00010958,2]
[353393664,1739812232760,-500.0,0.00010958,2]
[353393665,1739812232769,-500.0,0.00010958,2]
[353393666,1739812232779,-500.0,0.00010958,2]
[353393667,1739812232788,-500.0,0.00010958,2]
[353393668,1739812232798,-263.67472535,0.00010958,2]
[353393669,1739812232807,-500.0,0.00010958,2]
[353393670,1739812232817,-500.0,0.00010958,2]
[353393671,1739812232826,-500.0,0.00010958,2]
[353393672,1739812232835,-500.0,0.00010958,2]
[353393673,1739812232844,-554.63,0.00010958,2]
[353393674,1739812232853,-500.0,0.00010958,2]
[353393675,1739812232862,-500.0,0.00010958,2]
[353393676,1739812232872,-500.0,0.00010958,2]
[353393677,1739812232881,-500.0,0.00010958,2]
[353393678,1739812232891,-500.0,0.00010958,2]
[353393679,1739812232900,-500.0,0.00010958,2]
[353393680,1739812232909,-500.7081144,0.00010958,2]
[353393681,1739812232919,-500.0,0.00010958,2]
[353393682,1739812232928,-344.08271797,0.00010958,2]
[353393683,1739812232938,-504.23495781,0.00010958,2]
[353393684,1739812232948,-500.0,0.00010958,2]
[353393685,1739812232957,-604.78941811,0.00010958,2]
[353393686,1739812232967,-502.01419644,0.00010958,2]
[353393687,1739812232977,-500.0,0.00010958,2]
[353393688,1739812232986,-500.0,0.00010958,2]
[353393689,1739812232996,-500.0,0.00010958,2]
[353393690,1739812233005,-500.0,0.00010958,2]
[353393691,1739812233014,-500.0,0.00010958,2]
[353393692,1739812233024,-448.57266351,0.00010958,2]
[353393693,1739812233034,-500.0,0.00010958,2]
[353393694,1739812233044,-500.0,0.00010958,2]
[353393695,1739812233054,-500.0,0.00010958,2]
[353393696,1739812233063,-500.0,0.00010958,2]
[353393697,1739812233074,-500.0,0.00010958,2]
[353393698,1739812233084,-500.0,0.00010958,2]
[353393699,1739812233094,-500.0,0.00010958,2]
[353393700,1739812233104,-500.0,0.00010958,2]
[353393701,1739812233113,-500.0,0.00010958,2]
[353393702,1739812233123,-500.0,0.00010958,2]
[353393703,1739812233132,-500.0,0.00010958,2]
[353393704,1739812233142,-500.0,0.00010958,2]
[353393705,1739812233152,-500.0,0.00010958,2]
[353393706,1739812233162,-500.0,0.00010958,2]
[353393707,1739812233171,-500.0,0.00010958,2]
[353393708,1739812233180,-500.0,0.00010958,2]
[353393709,1739812233190,-500.0,0.00010958,2]
[353393710,1739812233199,-500.0,0.00010958,2]
[353393711,1739812233209,-500.0,0.00010958,2]
[353393712,1739812233219,-500.0,0.00010958,2]
[353393713,1739812233228,-502.01246421,0.00010958,2]
[353393714,1739812233238,-500.0,0.00010958,2]
[353393715,1739812233247,-500.0,0.00010958,2]
[353393716,1739812233369,-500.0,0.00010958,2]
[353393717,1739812233379,-500.0,0.00010958,2]
[353393718,1739812233390,-500.0,0.00010958,2]
[353393719,1739812233400,-628.57978206,0.00010958,2]
[353393720,1739812233409,-500.0,0.00010958,2]
[353393721,1739812233419,-500.0,0.00010958,2]
[353393722,1739812233429,-500.0,0.00010958,2]
[353393723,1739812233439,-500.0,0.00010958,2]
[353393724,1739812233449,-500.0,0.00010958,2]
[353393725,1739812233459,-500.0,0.00010958,2]
[353393726,1739812233469,-500.0,0.00010958,2]
[353393727,1739812233481,-500.0,0.00010958,2]
[353393728,1739812233491,-500.0,0.00010958,2]
[353393729,1739812233501,-500.0,0.00010958,2]
[353393730,1739812233511,-500.0,0.00010958,2]
[353393731,1739812233520,-500.0,0.00010958,2]
[353393732,1739812233531,-500.0,0.00010958,2]
[353393733,1739812233541,-500.0,0.00010958,2]
[353393734,1739812233551,-500.0,0.00010958,2]
[353393735,1739812233563,-500.0,0.00010958,2]
[353393736,1739812233575,-500.0,0.00010958,2]
[353393737,1739812233584,-500.60354051,0.00010958,2]
[353393738,1739812233594,-500.0,0.00010958,2]
[353393739,1739812233604,-500.0,0.00010958,2]
[353393740,1739812233614,-500.0,0.00010958,2]
[353393741,1739812233624,-500.0,0.00010958,2]
[353393742,1739812233634,-500.0,0.00010958,2]
[353393743,1739812233643,-500.0,0.00010958,2]
[353393744,1739812233653,-500.0,0.00010958,2]
[353393745,1739812233663,-500.0,0.00010958,2]
[353393746,1739812233673,-522.99507497,0.00010958,2]
[353393747,1739812233683,-500.0,0.00010958,2]
[353393748,1739812233693,-500.0,0.00010958,2]
[353393749,1739812233703,-500.0,0.00010958,2]
[353393750,1739812233712,-500.0,0.00010958,2]
[353393751,1739812233722,-500.0,0.00010958,2]
[353393752,1739812233732,-500.0,0.00010958,2]
[353393753,1739812233742,-500.0,0.00010958,2]
[353393754,1739812233751,-500.0,0.00010958,2]
[353393755,1739812233763,-502.07478489,0.00010958,2]
[353393756,1739812233772,-615.95,0.00010958,2]
[353393757,1739812233782,-500.0,0.00010958,2]
[353393758,1739812233792,-500.0,0.00010958,2]
[353393759,1739812233801,-500.0,0.00010958,2]
[353393760,1739812233811,-500.0,0.00010958,2]
[353393761,1739812233821,-500.0,0.00010958,2]
[353393762,1739812233830,-500.0,0.00010958,2]
[353393763,1739812233840,-500.0,0.00010958,2]
[353393764,1739812233850,-500.0,0.00010958,2]
[353393765,1739812233860,-500.0,0.00010958,2]
[353393766,1739812233869,-500.0,0.00010958,2]
[353393767,1739812233879,-504.92,0.00010958,2]
[353393768,1739812233889,-500.0,0.00010958,2]
[353393769,1739812233899,-500.0,0.00010958,2]
[353393770,1739812233908,-500.0,0.00010958,2]
[353393771,1739812233918,-500.0,0.00010958,2]
[353393772,1739812233927,-332.46123792,0.00010958,2]
[353393773,1739812233937,-500.0,0.00010958,2]
[353393774,1739812233947,-500.0,0.00010958,2]
[353393775,1739812233957,-220.23291561,0.00010958,2]
[353393776,1739812233967,-500.0,0.00010958,2]
[353393777,1739812233976,-500.0,0.00010958,2]
[353393778,1739812233985,-500.0,0.00010958,2]
[353393779,1739812233995,-500.0,0.00010958,2]
[353393780,1739812234005,-500.0,0.00010958,2]
[353393781,1739812234015,-500.0,0.00010958,2]
[353393782,1739812234024,-500.0,0.00010958,2]
[353393783,1739812234033,-500.0,0.00010958,2]
[353393784,1739812234043,-500.0,0.00010958,2]
[353393785,1739812234052,-500.0,0.00010958,2]
[353393786,1739812234061,-616.52825209,0.00010958,2]
[353393787,1739812234070,-504.43353363,0.00010958,2]
[353393788,1739812234079,-500.0,0.00010958,2]
[353393789,1739812234088,-503.11454854,0.00010958,2]
[353393790,1739812234098,-500.0,0.00010958,2]
[353393791,1739812234107,-500.0,0.00010958,2]
[353393792,1739812234117,-500.0,0.00010958,2]
[353393793,1739812234126,-596.82039196,0.00010958,2]
[353393794,1739812234135,-500.0,0.00010958,2]
[353393795,1739812234144,-501.03369092,0.00010958,2]
[353393796,1739812234154,-500.0,0.00010958,2]
[353393797,1739812234163,-500.0,0.00010958,2]
[353393798,1739812234172,-500.0,0.00010958,2]
[353393799,1739812234182,-500.0,0.00010958,2]
[353393800,1739812234191,-500.0,0.00010958,2]
[353393801,1739812234200,-500.0,0.00010958,2]
[353393802,1739812234210,-500.0,0.00010958,2]
[353393803,1739812234219,-500.0,0.00010958,2]
[353393804,1739812234228,-500.0,0.00010958,2]
[353393805,1739812234237,-500.0,0.00010958,2]
[353393806,1739812234246,-500.0,0.00010958,2]
[353393807,1739812234256,-500.0,0.00010958,2]
[353393808,1739812234265,-500.0,0.00010958,2]
[353393809,1739812234274,-637.37,0.00010958,2]
[353393810,1739812234284,-500.0,0.00010958,2]
[353393811,1739812234293,-502.43674304,0.00010958,2]
[353393812,1739812234303,-500.0,0.00010958,2]
[353393813,1739812234312,-500.0,0.00010958,2]
[353393814,1739812234321,-500.0,0.00010958,2]
[353393815,1739812234331,-500.0,0.00010958,2]
[353393816,1739812234340,-500.0,0.00010958,2]
[353393817,1739812234350,-500.0,0.00010958,2]
[353393818,1739812234359,-500.0,0.00010958,2]
[353393819,1739812234368,-500.0,0.00010958,2]
[353393820,1739812234378,-500.0,0.00010958,2]
[353393821,1739812234387,-500.0,0.00010958,2]
[353393822,1739812234397,-500.0,0.00010958,2]
[353393823,1739812234407,-500.0,0.00010958,2]
[353393824,1739812234416,-500.0,0.00010958,2]
[353393825,1739812234426,-500.0,0.00010958,2]
[353393826,1739812234435,-500.0,0.00010958,2]
[353393827,1739812234444,-500.0,0.00010958,2]
[353393828,1739812234456,-500.0,0.00010958,2]
[353393829,1739812234466,-500.0,0.00010958,2]
[353393830,1739812234476,-506.69463046,0.00010958,2]
[353393831,1739812234490,-500.0,0.00010958,2]
[353393832,1739812234500,-500.0,0.00010958,2]
[353393833,1739812234510,-506.17367738,0.00010958,2]
[353393834,1739812234520,-500.0,0.00010958,2]
[353393835,1739812234531,-500.0,0.00010958,2]
[353393836,1739812234541,-500.0,0.00010958,2]
[353393837,1739812234551,-500.0,0.00010958,2]
[353393838,1739812234561,-337.41531603,0.00010958,2]
[353393839,1739812234572,-500.0,0.00010958,2]
[353393840,1739812234582,-500.0,0.00010958,2]
[353393841,1739812234592,-500.0,0.00010958,2]
[353393842,1739812234601,-500.0,0.00010958,2]
[353393843,1739812234611,-500.0,0.00010958,2]
[353393844,1739812234620,-500.0,0.00010958,2]
[353393845,1739812234630,-500.0,0.00010958,2]
[353393846,1739812234640,-500.0,0.00010958,2]
[353393847,1739812234650,-500.0,0.00010958,2]
[353393848,1739812234660,-500.0,0.00010958,2]
[353393849,1739812234670,-500.0,0.00010958,2]
[353393850,1739812234680,-500.0,0.00010958,2]
[353393851,1739812234689,-500.0,0.00010958,2]
[353393852,1739812234699,-297.99553523,0.00010958,2]
[353393853,1739812234709,-500.0,0.00010958,2]
[353393854,1739812234719,-500.0,0.00010958,2]